fUST/lending_fUST_20250606
["ID","MTS","AMOUNT","RATE_DAILY","PERIOD"]
[364655677,1749185444409,-392.4011,0.00024352,7]
[364655679,1749185444418,-1816.31465053,0.00024353,20]
[364655681,1749185444430,-70017.73914222,0.00024353,20]
[364655683,1749185444441,-10749.82096766,0.00024353,20]
[364655685,1749185444452,-21759.30722081,0.00024353,20]
[364656729,1749185532515,204.94,0.00019,2]
[364656731,1749185568383,227.01530221,0.00013699,2]
[364656732,1749185568409,45.57355079,0.00013699,2]
[364656734,1749185650055,-166.33929179,0.00019,3]
[364656735,1749185653339,-307.94588289,0.00019,3]
[364656736,1749185655330,-200.94979533,0.00019,3]
[364656737,1749185657834,-173.899304,0.00019,3]
[364656738,1749185661710,-300.0,0.00019,3]
[364656739,1749185664950,-154.39425402,0.00019,3]
[364656740,1749185670855,-188.18656307,0.00019,3]
[364656741,1749185674013,-153.56906213,0.00019,3]
[364656742,1749185677899,-195.85382659,0.00019,3]
[364656743,1749185687453,-305.7532853,0.00019,3]
[364656744,1749185689378,-371.76640356,0.00019,3]
[364656745,1749185693509,-333.51926862,0.00019,3]
[364656746,1749185702808,-230.41930222,0.00019,3]
[364656747,1749185706379,-164.17030852,0.00019,3]
[364656748,1749185710377,-195.08886055,0.00019,3]
[364656749,1749185712259,-255.11607998,0.00019,3]
[364656750,1749185718233,-163.484949,0.00019,3]
[364656751,1749185720103,-304.49010774,0.00019,3]
[364656752,1749185727555,-241.78191026,0.00019,3]
[364656753,1749185730130,-207.4,0.00019,3]
[364656754,1749185734224,-328.44759499,0.00019,3]
[364656755,1749185736074,-203.01044608,0.00019,3]
[364656756,1749185741937,-260.73378009,0.00019,3]
[364656757,1749185743844,-256.08188545,0.00019,3]
[364656758,1749185749317,300.0,0.00018999,2]
[364656759,1749185749529,-303.02236616,0.00019,3]
[364656760,1749185753360,-335.09127445,0.00019,3]
[364656761,1749185757952,-213.48860928,0.00019,3]
[364656762,1749185761397,-156.63888565,0.00019,3]
[364656763,1749185765798,-180.08330764,0.00019,3]
[364656764,1749185768245,-231.02883716,0.00019,3]
[364656765,1749185774147,-276.49783186,0.00019,3]
[364656766,1749185776614,-300.0,0.00019,3]
[364656767,1749185781011,-222.25790411,0.00019,3]
[364656768,1749185782978,-201.85554784,0.00019,3]
[364656770,1749185789978,-184.02123448,0.00019,3]
[364656771,1749185792655,-165.396631,0.00019,3]
[364656772,1749185797680,-236.52026171,0.00019,3]
[364656773,1749185802293,-301.51309091,0.00019,3]
[364656774,1749185807619,-155.3670742,0.00019,3]
[364656775,1749185809385,-308.41510819,0.00019,3]
[364656776,1749185813426,-173.52088538,0.00019,3]
[364656777,1749185815271,-160.10982047,0.00019,3]
[364656778,1749185821575,-183.43796229,0.00019,3]
[364656779,1749185822564,160.0,0.00018999,2]
[364656780,1749185825286,-198.05707594,0.00019,3]
[364656781,1749185830489,-258.55520364,0.00019,3]
[364656782,1749185832322,-402.29227209,0.00019,3]
[364656783,1749185838286,-529.59945703,0.00019,3]
[364656784,1749185846807,-402.58715348,0.00019,3]
[364656785,1749185849111,-169.090823,0.00019,3]
[364656786,1749185853012,-270.52471525,0.00019,3]
[364656787,1749185856632,-182.57529871,0.00019,3]
[364656788,1749185861866,-298.33652114,0.00019,3]
[364656789,1749185865128,-256.35534195,0.00019,3]
[364656790,1749185869909,-221.71357071,0.00019,3]
[364656791,1749185873458,-165.81925199,0.00019,3]
[364656792,1749185878939,-157.90957491,0.00019,3]
[364656793,1749185881237,-370.94478613,0.00019,3]
[364656794,1749185885863,-211.22775025,0.00019,3]
[364656795,1749185888198,-179.90955412,0.00019,3]
[364656796,1749185894130,-241.16550242,0.00019,3]
[364656797,1749185897780,-247.14207683,0.00019,3]
[364656798,1749185901120,-161.07694948,0.00019,3]
[364656799,1749185904173,-158.96908279,0.00019,3]
[364656800,1749185906591,203.21254447,0.0001843,2]
[364656801,1749185909926,-163.37215916,0.00019,3]
[364656802,1749185912563,-209.37251466,0.00019,3]
[364656803,1749185918452,-239.40214263,0.00019,3]
[364656804,1749185921960,-273.4537256,0.00019,3]
[364656805,1749185924835,-182.95,0.00019,3]
[364656806,1749185926693,-184.046707,0.00019,3]
[364656807,1749185929937,-254.47840344,0.00019,3]
[364656808,1749185933629,-204.76240816,0.00019,3]
[364656809,1749185938944,-153.68289079,0.00019,3]
[364656810,1749185943072,-173.899304,0.00019,3]
[364656811,1749185943642,300.0,0.00018999,2]
[364656812,1749185944975,-223.53184266,0.00019,3]
[364656813,1749186003191,290.0,0.00018999,2]
[364656817,1749186074170,151.0,0.00018999,2]
[364656818,1749186074664,181.33441057,0.00018999,2]
[364656819,1749186077096,272.92048479,0.000189,2]
[364656821,1749186098090,183.12,0.0001899,2]
[364656822,1749186161960,475.0,0.00019,2]
[364656823,1749186239515,263.82313521,0.000189,2]
[364656824,1749186303312,300.0,0.00018999,2]
[364656825,1749186319763,165.5,0.00024658,120]
[364656827,1749186354091,-4705.88522396,0.00019,3]
[364656828,1749186404866,255.02903079,0.000189,2]
[364656833,1749186440132,-348.91639915,0.00019,3]
[364656834,1749186441124,-621.16389863,0.00019,3]
[364656836,1749186448343,751.73367961,0.000189,2]
[364656837,1749186545155,-26156.15578639,0.00019,3]
[364656838,1749186545175,-158.69561145,0.00019,2]
[364656839,1749186545195,-842.5625,0.00019,3]
[364656840,1749186545222,-255.02903063,0.00019107,2]
[364656841,1749186545249,-255.02903063,0.00019314,2]
[364656842,1749186545269,-150.0,0.00019366,2]
[364656843,1749186545289,-200.97690194,0.00019501,2]
[364656844,1749186545315,-255.02903063,0.00019521,2]
[364656845,1749186545334,-783.64012607,0.00019601,2]
[364656846,1749186545354,-132.21800349,0.00019609,2]
[364656847,1749186546103,-151.0,0.00019609,2]
[364656848,1749186546123,-250.29065206,0.00019609,2]
[364656849,1749186566078,-633.28670165,0.00019609,2]
[364656850,1749186566100,-522.05800328,0.00019652,2]
[364656851,1749186574117,-2325.53006978,0.00019652,2]
[364656852,1749186574141,-172.844139,0.00019652,2]
[364656853,1749186574162,-308.19136247,0.00019662,2]
[364656854,1749186574192,-93.96452553,0.00019662,2]
[364656890,1749186632026,-188.256,0.00019968,2]
[364656891,1749186632036,-762.00934365,0.00019987,2]
[364656892,1749186632323,-13976.16233865,0.00019987,2]
[364656893,1749186632333,-1214.2456843,0.0002002,2]
[364656894,1749186632342,-272.588853,0.00020187,2]
[364656895,1749186632352,-221.02516015,0.000209,4]
[364656896,1749186632362,-1025.8547855,0.0002097,2]
[364656897,1749186632371,-221.02515987,0.00021038,4]
[364656898,1749186632381,-150.0,0.00021126,2]
[364656899,1749186632391,-221.02515987,0.00021176,4]
[364656900,1749186632401,-221.02515987,0.00021314,5]
[364656901,1749186632410,-221.02515987,0.00021452,5]
[364656902,1749186632420,-221.02515987,0.0002159,5]
[364656903,1749186632430,-212.976918,0.00021635,2]
[364656904,1749186632440,-160.0,0.00021639,2]
[364656905,1749186632450,-221.02515987,0.00021728,5]
[364656906,1749186632460,-221.02515987,0.00021866,6]
[364656907,1749186632469,-842.5625,0.00021911,2]
[364656908,1749186632479,-229.52673067,0.00021911,2]
[364656909,1749186632489,-160.0,0.00021911,2]
[364656910,1749186632498,-160.0,0.00021911,2]
[364656911,1749186632507,-160.0,0.00021916,2]
[364656912,1749186632517,-108745.0031,0.00021916,2]
[364656913,1749186632527,-385.26,0.00021916,2]
[364656914,1749186632536,-365.03781242,0.00021917,2]
[364656915,1749186632548,-440.0,0.00021917,2]
[364656916,1749186632558,-430.0,0.00021917,2]
[364656917,1749186632567,-440.0,0.00021917,2]
[364656918,1749186632577,-430.0,0.00021917,2]
[364656919,1749186632587,-344.26857177,0.00021917,2]
[364656920,1749186632596,-446.60667681,0.00021917,2]
[364656921,1749186632605,-201.80133229,0.00021917,2]
[364656922,1749186632615,-448.83732581,0.00021917,2]
[364656923,1749186632625,-195.39587358,0.00021917,2]
[364656924,1749186632635,-487.65313105,0.00021917,2]
[364656925,1749186632644,-440.0,0.00021917,2]
[364656926,1749186632653,-440.0,0.00021917,2]
[364656927,1749186632663,-440.0,0.00021917,2]
[364656928,1749186632672,-440.0,0.00021917,2]
[364656929,1749186632682,-440.0,0.00021917,2]
[364656930,1749186632690,-440.0,0.00021917,2]
[364656931,1749186632698,-213.45068498,0.00021917,2]
[364656932,1749186632706,-584.02,0.00021917,2]
[364656933,1749186632714,-441.96393305,0.00021917,2]
[364656934,1749186632722,-228.41859314,0.00021917,2]
[364656935,1749186632730,-440.0,0.00021917,2]
[364656936,1749186632738,-440.0,0.00021917,2]
[364656937,1749186632747,-440.0,0.00021917,2]
[364656938,1749186632756,-440.0,0.00021917,2]
[364656939,1749186632764,-471.55228999,0.00021917,2]
[364656940,1749186632774,-440.0,0.00021917,2]
[364656941,1749186632783,-440.0,0.00021917,2]
[364656942,1749186632791,-449.44507541,0.00021917,2]
[364656943,1749186632801,-440.0,0.00021917,2]
[364656944,1749186632810,-440.0,0.00021917,2]
[364656945,1749186632820,-440.0,0.00021917,2]
[364656946,1749186632831,-440.0,0.00021917,2]
[364656947,1749186632842,-440.0,0.00021917,2]
[364656948,1749186632851,-440.0,0.00021917,2]
[364656949,1749186632861,-440.0,0.00021917,2]
[364656950,1749186632870,-475.68615654,0.00021917,2]
[364656951,1749186632879,-440.0,0.00021917,2]
[364656952,1749186632890,-440.0,0.00021917,2]
[364656953,1749186632900,-440.0,0.00021917,2]
[364656954,1749186632910,-430.0,0.00021917,2]
[364656955,1749186632919,-460.91084822,0.00021917,2]
[364656956,1749186632929,-516.49739776,0.00021917,2]
[364656957,1749186632938,-443.05648516,0.00021917,2]
[364656958,1749186632947,-430.0,0.00021917,2]
[364656959,1749186632957,-454.56446489,0.00021917,2]
[364656960,1749186632967,-390.11724144,0.00021917,2]
[364656961,1749186632979,-440.0,0.00021917,2]
[364656962,1749186632988,-440.0,0.00021917,2]
[364656963,1749186632997,-426.51973898,0.00021917,2]
[364656964,1749186633006,-440.0,0.00021917,2]
[364656965,1749186633016,-440.0,0.00021917,2]
[364656966,1749186633025,-440.0,0.00021917,2]
[364656967,1749186633034,-440.0,0.00021917,2]
[364656968,1749186633046,-434.67485657,0.00021917,2]
[364656969,1749186633057,-440.0,0.00021917,2]
[364656970,1749186633067,-293.12608196,0.00021917,2]
[364656971,1749186633077,-440.0,0.00021917,2]
[364656972,1749186633087,-445.36126045,0.00021917,2]
[364656973,1749186633096,-440.0,0.00021917,2]
[364656974,1749186633106,-150.83004207,0.00021917,2]
[364656975,1749186633115,-442.71489523,0.00021917,2]
[364656976,1749186633125,-440.62918901,0.00021917,2]
[364656977,1749186633135,-450.82247336,0.00021917,2]
[364656978,1749186633143,-444.72935504,0.00021917,2]
[364656979,1749186633152,-440.0,0.00021917,2]
[364656980,1749186633162,-454.63509797,0.00021917,2]
[364656981,1749186633172,-248.77329956,0.00021917,2]
[364656982,1749186633181,-440.0,0.00021917,2]
[364656983,1749186633191,-511.29686665,0.00021917,2]
[364656984,1749186633200,-440.0,0.00021917,2]
[364656985,1749186633210,-440.0,0.00021917,2]
[364656986,1749186633219,-453.70968768,0.00021917,2]
[364656987,1749186633229,-440.0,0.00021917,2]
[364656988,1749186633239,-447.77931511,0.00021917,2]
[364656989,1749186633249,-446.1881828,0.00021917,2]
[364656990,1749186633258,-452.04772813,0.00021917,2]
[364656991,1749186633270,-284.13470896,0.00021917,2]
[364656992,1749186633280,-430.0,0.00021917,2]
[364656993,1749186633290,-430.0,0.00021917,2]
[364656994,1749186633300,-440.0,0.00021917,2]
[364656995,1749186633310,-497.11937257,0.00021917,2]
[364656996,1749186633320,-447.00336463,0.00021917,2]
[364656997,1749186633330,-438.8153184,0.00021917,2]
[364656998,1749186633340,-440.0,0.00021917,2]
[364656999,1749186633350,-443.99958034,0.00021917,2]
[364657000,1749186633360,-435.85992987,0.00021917,2]
[364657001,1749186633370,-559.27070013,0.00021917,2]
[364657002,1749186633379,-318.03,0.00021917,2]
[364657003,1749186633390,-389.54131061,0.00021917,2]
[364657004,1749186633399,-430.0,0.00021917,2]
[364657005,1749186633409,-482.91088288,0.00021917,2]
[364657006,1749186633418,-440.0,0.00021917,2]
[364657007,1749186633428,-440.0,0.00021917,2]
[364657008,1749186633439,-440.0,0.00021917,2]
[364657009,1749186633449,-440.0,0.00021917,2]
[364657010,1749186633458,-440.0,0.00021917,2]
[364657011,1749186633468,-440.0,0.00021917,2]
[364657012,1749186633478,-573.81991623,0.00021917,2]
[364657013,1749186633490,-297.47618959,0.00021917,2]
[364657014,1749186633501,-438.44883724,0.00021917,2]
[364657015,1749186633511,-440.0,0.00021917,2]
[364657016,1749186633521,-410.00407777,0.00021917,2]
[364657017,1749186633531,-481.65870944,0.00021917,2]
[364657018,1749186633542,-379.83648749,0.00021917,2]
[364657019,1749186633552,-540.28225912,0.00021917,2]
[364657020,1749186633561,-447.42883138,0.00021917,2]
[364657021,1749186633572,-440.0,0.00021917,2]
[364657022,1749186633583,-411.70402427,0.00021917,2]
[364657023,1749186633594,-430.0,0.00021917,2]
[364657024,1749186633605,-440.0,0.00021917,2]
[364657025,1749186633615,-440.0,0.00021917,2]
[364657026,1749186633626,-440.0,0.00021917,2]
[364657027,1749186633636,-440.0,0.00021917,2]
[364657028,1749186633646,-440.0,0.00021917,2]
[364657029,1749186633656,-440.0,0.00021917,2]
[364657030,1749186633667,-440.0,0.00021917,2]
[364657031,1749186633676,-440.0,0.00021917,2]
[364657032,1749186633686,-440.0,0.00021917,2]
[364657033,1749186633697,-430.0,0.00021917,2]
[364657034,1749186633707,-440.0,0.00021917,2]
[364657035,1749186633718,-440.0,0.00021917,2]
[364657036,1749186633728,-440.0,0.00021917,2]
[364657037,1749186633739,-486.94271388,0.00021917,2]
[364657038,1749186633750,-440.0,0.00021917,2]
[364657039,1749186633760,-414.43050531,0.00021917,2]
[364657040,1749186633771,-440.0,0.00021917,2]
[364657041,1749186633781,-440.0,0.00021917,2]
[364657042,1749186633790,-430.0,0.00021917,2]
[364657043,1749186633800,-440.0,0.00021917,2]
[364657044,1749186633810,-444.48812059,0.00021917,2]
[364657045,1749186633820,-430.0,0.00021917,2]
[364657046,1749186633829,-440.0,0.00021917,2]
[364657047,1749186633840,-440.0,0.00021917,2]
[364657048,1749186633850,-440.0,0.00021917,2]
[364657049,1749186633860,-452.71314791,0.00021917,2]
[364657050,1749186633870,-440.0,0.00021917,2]
[364657051,1749186633880,-440.0,0.00021917,2]
[364657052,1749186633890,-440.0,0.00021917,2]
[364657053,1749186633899,-440.0,0.00021917,2]
[364657054,1749186633909,-451.97256478,0.00021917,2]
[364657055,1749186633918,-440.0,0.00021917,2]
[364657056,1749186633928,-440.0,0.00021917,2]
[364657057,1749186633938,-440.0,0.00021917,2]
[364657058,1749186634054,-440.0,0.00021917,2]
[364657059,1749186634066,-440.0,0.00021917,2]
[364657060,1749186634075,-440.0,0.00021917,2]
[364657061,1749186634085,-445.8948729,0.00021917,2]
[364657062,1749186634095,-440.0,0.00021917,2]
[364657063,1749186634104,-440.0,0.00021917,2]
[364657064,1749186634112,-180.65588139,0.00021917,2]
[364657065,1749186634122,-440.0,0.00021917,2]
[364657066,1749186634132,-440.0,0.00021917,2]
[364657067,1749186634141,-440.0,0.00021917,2]
[364657068,1749186634151,-440.0,0.00021917,2]
[364657069,1749186634160,-453.41059763,0.00021917,2]
[364657070,1749186634169,-440.0,0.00021917,2]
[364657071,1749186634178,-440.0,0.00021917,2]
[364657072,1749186634188,-442.01769276,0.00021917,2]
[364657073,1749186634197,-440.0,0.00021917,2]
[364657074,1749186634207,-437.87277171,0.00021917,2]
[364657075,1749186634217,-431.80708131,0.00021917,2]
[364657076,1749186634226,-455.41175647,0.00021917,2]
[364657077,1749186634235,-470.51971962,0.00021917,2]
[364657078,1749186634245,-440.0,0.00021917,2]
[364657079,1749186634255,-440.0,0.00021917,2]
[364657080,1749186634265,-430.0,0.00021917,2]
[364657081,1749186634275,-440.0,0.00021917,2]
[364657082,1749186634284,-400.0,0.00021917,2]
[364657083,1749186634294,-440.0,0.00021917,2]
[364657084,1749186634303,-435.16761535,0.00021917,2]
[364657085,1749186634312,-440.0,0.00021917,2]
[364657086,1749186634322,-440.0,0.00021917,2]
[364657087,1749186634332,-440.0,0.00021917,2]
[364657088,1749186634342,-440.0,0.00021917,2]
[364657089,1749186634352,-440.0,0.00021917,2]
[364657090,1749186634362,-440.0,0.00021917,2]
[364657091,1749186634373,-426.03995349,0.00021917,2]
[364657092,1749186634382,-440.0,0.00021917,2]
[364657093,1749186634392,-435.30604679,0.00021917,2]
[364657094,1749186634402,-440.0,0.00021917,2]
[364657095,1749186634411,-440.0,0.00021917,2]
[364657096,1749186634421,-440.0,0.00021917,2]
[364657097,1749186634431,-440.0,0.00021917,2]
[364657098,1749186634442,-440.0,0.00021917,2]
[364657099,1749186634451,-440.0,0.00021917,2]
[364657100,1749186634461,-440.98633417,0.00021917,2]
[364657101,1749186634471,-440.0,0.00021917,2]
[364657102,1749186634480,-440.0,0.00021917,2]
[364657103,1749186634491,-430.0,0.00021917,2]
[364657104,1749186634501,-440.0,0.00021917,2]
[364657105,1749186634511,-440.0,0.00021917,2]
[364657106,1749186634521,-420.0,0.00021917,2]
[364657107,1749186634531,-440.0,0.00021917,2]
[364657108,1749186634541,-439.54914679,0.00021917,2]
[364657109,1749186634552,-440.0,0.00021917,2]
[364657110,1749186634561,-440.0,0.00021917,2]
[364657111,1749186634571,-440.0,0.00021917,2]
[364657112,1749186634582,-182.3742132,0.00021917,2]
[364657113,1749186634591,-440.0,0.00021917,2]
[364657114,1749186634601,-440.0,0.00021917,2]
[364657115,1749186634611,-440.0,0.00021917,2]
[364657116,1749186634621,-446.98083035,0.00021917,2]
[364657117,1749186634630,-440.0,0.00021917,2]
[364657118,1749186634640,-469.93902303,0.00021917,2]
[364657119,1749186634650,-440.0,0.00021917,2]
[364657120,1749186634659,-440.0,0.00021917,2]
[364657121,1749186634669,-453.10434963,0.00021917,2]
[364657122,1749186634679,-440.0,0.00021917,2]
[364657123,1749186634689,-440.0,0.00021917,2]
[364657124,1749186634699,-440.0,0.00021917,2]
[364657125,1749186634708,-430.0,0.00021917,2]
[364657126,1749186634718,-430.0,0.00021917,2]
[364657127,1749186634727,-439.3641378,0.00021917,2]
[364657128,1749186634736,-440.0,0.00021917,2]
[364657129,1749186634745,-440.0,0.00021917,2]
[364657130,1749186634755,-440.0,0.00021917,2]
[364657131,1749186634765,-430.0,0.00021917,2]
[364657132,1749186634775,-653.12,0.00021917,2]
[364657133,1749186634785,-173.14850482,0.00021917,2]
[364657134,1749186634794,-440.54061231,0.00021917,2]
[364657135,1749186634804,-440.0,0.00021917,2]
[364657136,1749186634813,-440.0,0.00021917,2]
[364657137,1749186634822,-442.19,0.00021917,2]
[364657138,1749186634831,-440.0,0.00021917,2]
[364657139,1749186634840,-440.0,0.00021917,2]
[364657140,1749186634850,-333.02907697,0.00021917,2]
[364657141,1749186634859,-440.0,0.00021917,2]
[364657142,1749186634869,-341.76,0.00021917,2]
[364657143,1749186634878,-500.0,0.00021917,2]
[364657144,1749186634887,-500.0,0.00021917,2]
[364657145,1749186634897,-440.0,0.00021917,2]
[364657146,1749186634906,-500.0,0.00021917,2]
[364657147,1749186634916,-594.44691719,0.00021917,2]
[364657148,1749186634925,-440.0,0.00021917,2]
[364657149,1749186634934,-366.7228238,0.00021917,2]
[364657150,1749186634944,-430.0,0.00021917,2]
[364657151,1749186634953,-3424.54163281,0.00022,2]
[364657152,1749186634964,-221.02515987,0.00022003,6]
[364657153,1749186634977,-221.02515987,0.00022141,6]
[364657154,1749186634986,-461.4,0.00022191,2]
[364657155,1749186634995,-206.6274282,0.00022191,2]
[364657156,1749186635006,-484.1106547,0.00022191,2]
[364657157,1749186635018,-440.0,0.00022191,2]
[364657158,1749186635027,-507.47391769,0.00022191,2]
[364657159,1749186635037,-440.0,0.00022191,2]
[364657160,1749186635047,-440.0,0.00022191,2]
[364657161,1749186635056,-179.07789097,0.00022191,2]
[364657162,1749186635066,-440.0,0.00022191,2]
[364657163,1749186635076,-440.0,0.00022191,2]
[364657164,1749186635085,-196.20627243,0.00022191,2]
[364657165,1749186635094,-420.0,0.00022191,2]
[364657166,1749186635104,-440.0,0.00022191,2]
[364657167,1749186635114,-420.0,0.00022191,2]
[364657168,1749186635123,-440.0,0.00022191,2]
[364657169,1749186635133,-420.0,0.00022191,2]
[364657170,1749186635142,-440.0,0.00022191,2]
[364657171,1749186635153,-440.0,0.00022191,2]
[364657172,1749186635163,-202.36,0.00022191,2]
[364657173,1749186635172,-440.0,0.00022191,2]
[364657174,1749186635182,-448.45471386,0.00022191,2]
[364657175,1749186635192,-440.0,0.00022191,2]
[364657176,1749186635202,-366.66228101,0.00022191,2]
[364657177,1749186635212,-538.20320171,0.00022191,2]
[364657178,1749186635221,-440.0,0.00022191,2]
[364657179,1749186635231,-440.0,0.00022191,2]
[364657180,1749186635240,-239.90228974,0.00022191,2]
[364657181,1749186635250,-440.0,0.00022191,2]
[364657182,1749186635259,-440.0,0.00022191,2]
[364657183,1749186635267,-440.0,0.00022191,2]
[364657184,1749186635276,-440.0,0.00022191,2]
[364657185,1749186635286,-440.0,0.00022191,2]
[364657186,1749186635296,-440.0,0.00022191,2]
[364657187,1749186635305,-440.0,0.00022191,2]
[364657188,1749186635315,-460.38926323,0.00022191,2]
[364657189,1749186635325,-440.0,0.00022191,2]
[364657190,1749186635335,-440.0,0.00022191,2]
[364657191,1749186635344,-512.80176838,0.00022191,2]
[364657192,1749186635353,-551.71104593,0.00022191,2]
[364657193,1749186635363,-430.42917571,0.00022191,2]
[364657194,1749186635372,-440.0,0.00022191,2]
[364657195,1749186635382,-440.0,0.00022191,2]
[364657196,1749186635392,-440.0,0.00022191,2]
[364657197,1749186635402,-420.0,0.00022191,2]
[364657198,1749186635412,-359.16264308,0.00022191,2]
[364657199,1749186635422,-548.49557761,0.00022191,2]
[364657200,1749186635433,-434.67390775,0.00022191,2]
[364657201,1749186635443,-440.0,0.00022191,2]
[364657202,1749186635452,-420.0,0.00022191,2]
[364657203,1749186635462,-440.0,0.00022191,2]
[364657204,1749186635473,-440.0,0.00022191,2]
[364657205,1749186635484,-420.0,0.00022191,2]
[364657206,1749186635495,-440.0,0.00022191,2]
[364657207,1749186635506,-440.0,0.00022191,2]
[364657208,1749186635518,-440.0,0.00022191,2]
[364657209,1749186635529,-578.42606361,0.00022191,2]
[364657210,1749186635540,-440.0,0.00022191,2]
[364657211,1749186635553,-440.0,0.00022191,2]
[364657212,1749186635563,-440.0,0.00022191,2]
[364657213,1749186635573,-343.18644927,0.00022191,2]
[364657214,1749186635582,-437.58325611,0.00022191,2]
[364657215,1749186635591,-440.0,0.00022191,2]
[364657216,1749186635601,-440.0,0.00022191,2]
[364657217,1749186635611,-440.0,0.00022191,2]
[364657218,1749186635621,-440.0,0.00022191,2]
[364657219,1749186635630,-440.0,0.00022191,2]
[364657220,1749186635641,-440.0,0.00022191,2]
[364657221,1749186635651,-440.0,0.00022191,2]
[364657222,1749186635662,-420.0,0.00022191,2]
[364657223,1749186635672,-440.0,0.00022191,2]
[364657224,1749186635683,-420.0,0.00022191,2]
[364657225,1749186635693,-440.0,0.00022191,2]
[364657226,1749186635702,-436.76484331,0.00022191,2]
[364657227,1749186635712,-440.0,0.00022191,2]
[364657228,1749186635722,-440.0,0.00022191,2]
[364657229,1749186635733,-440.0,0.00022191,2]
[364657230,1749186635743,-440.0,0.00022191,2]
[364657231,1749186635752,-440.0,0.00022191,2]
[364657232,1749186635762,-440.0,0.00022191,2]
[364657233,1749186635772,-576.70973206,0.00022191,2]
[364657234,1749186635782,-440.0,0.00022191,2]
[364657235,1749186635791,-440.0,0.00022191,2]
[364657236,1749186635801,-440.0,0.00022191,2]
[364657237,1749186635810,-440.0,0.00022191,2]
[364657238,1749186635820,-440.0,0.00022191,2]
[364657239,1749186635829,-420.0,0.00022191,2]
[364657240,1749186635838,-423.89178421,0.00022191,2]
[364657241,1749186635847,-420.0,0.00022191,2]
[364657242,1749186635857,-440.0,0.00022191,2]
[364657243,1749186635866,-440.0,0.00022191,2]
[364657244,1749186635875,-420.0,0.00022191,2]
[364657245,1749186635884,-440.0,0.00022191,2]
[364657246,1749186635893,-440.0,0.00022191,2]
[364657247,1749186635902,-476.98,0.00022191,2]
[364657248,1749186635912,-440.0,0.00022191,2]
[364657249,1749186635921,-447.94543389,0.00022191,2]
[364657250,1749186635930,-440.0,0.00022191,2]
[364657251,1749186635939,-440.0,0.00022191,2]
[364657252,1749186635948,-352.72767989,0.00022191,2]
[364657253,1749186635957,-440.0,0.00022191,2]
[364657254,1749186635969,-440.0,0.00022191,2]
[364657255,1749186635979,-344.0166995,0.00022191,2]
[364657256,1749186635989,-461.96012296,0.00022191,2]
[364657257,1749186635999,-440.0,0.00022191,2]
[364657258,1749186636008,-440.0,0.00022191,2]
[364657259,1749186636019,-440.0,0.00022191,2]
[364657260,1749186636029,-440.0,0.00022191,2]
[364657261,1749186636038,-440.0,0.00022191,2]
[364657262,1749186636049,-440.0,0.00022191,2]
[364657263,1749186636058,-440.0,0.00022191,2]
[364657264,1749186636068,-440.0,0.00022191,2]
[364657265,1749186636078,-420.0,0.00022191,2]
[364657266,1749186636088,-440.0,0.00022191,2]
[364657267,1749186636097,-549.16803782,0.00022191,2]
[364657268,1749186636106,-440.0,0.00022191,2]
[364657269,1749186636116,-420.0,0.00022191,2]
[364657270,1749186636125,-3.28592805,0.00022191,2]
[364657280,1749186637847,-153.10342125,0.00019921,2]